Cogmind - Beta 11.1 *** ADVENTURER MODE // 2022.05.15 @ 09:14:43 Player: kaletaa Result: Self-destructed Performance ------------- Evolutions (2) 1000 Regions Visited (5) 1000 Robots Destroyed (31) 155 Value Destroyed (481) 481 Prototype IDs (2) 40 Alien Tech Used (0) 0 Bonus (0) 0 TOTAL SCORE: 2676 Bonus ------- None Cogmind --------- Core Integrity 458/550 Matter 456/500 Energy 250/250 System Corruption 0% Temperature Cool (6) Movement Walking (470) Ox5 Location -8/Materials Parts ------- > --- POWER (2) -------- Ion Engine > --- PROPULSION (3) --- Aluminum Leg > --- UTILITY (3) ------ Large Storage Unit Large Storage Unit High-capacity Matter Pod > --- WEAPON (3) ------- Medium Laser Heavy Assault Rifle > --- INVENTORY (15) --- Ion Engine Ion Engine Light Ion Engine Light Nuclear Core Small Storage Unit Small Laser Heavy Assault Rifle EMP Blaster EMP Blaster Rocket Launcher Plasma Cutter Peak State ------------ > --- POWER ------------ Ion Engine Light Ion Engine > --- PROPULSION ------- Aluminum Leg Aluminum Leg > --- UTILITY ---------- Small Storage Unit Large Storage Unit High-capacity Matter Pod > --- WEAPON ----------- Medium Laser Heavy Assault Rifle Grenade Launcher > --- INVENTORY -------- Light Ion Engine Small Laser Heavy Assault Rifle EMP Blaster EMP Blaster Plasma Cutter [Rating: 12] Favorites ----------- Power Light Ion Engine Engine Light Ion Engine Propulsion Aluminum Leg Leg Aluminum Leg Utility Large Storage Unit Device Seismic Detector Storage Large Storage Unit Weapon Medium Laser Energy Gun Medium Laser Ballistic Gun Heavy Assault Rifle Launcher Grenade Launcher Build | -11 -10 -10 -9 -9 -8 ------- Run | Scr Mat Min Mat Min Mat Slots Evolved 4 | . . . 2 . 2 Power 1 | . . . . . 1 Propulsion 1 | . . . 1 . . Utility 1 | . . . 1 . . Weapon 1 | . . . . . 1 Parts Attached 15 | 6 4 . 1 . 4 Power 2 | 1 . . . . 1 Engine 2 | 1 . . . . 1 Core . | . . . . . . Reactor . | . . . . . . Propulsion 2 | 2 . . . . . Treads . | . . . . . . Leg 2 | 2 . . . . . Wheel . | . . . . . . Hover . | . . . . . . Flight . | . . . . . . Utility 7 | 1 3 . 1 . 2 Device 1 | . 1 . . . . Storage 6 | 1 2 . 1 . 2 Processor . | . . . . . . Hackware . | . . . . . . Protection . | . . . . . . Artifact . | . . . . . . Weapon 4 | 2 1 . . . 1 Energy Gun 2 | 2 . . . . . Energy Cannon . | . . . . . . Ballistic Gun 1 | . . . . . 1 Ballistic Cannon . | . . . . . . Launcher 1 | . 1 . . . . Special Weapon . | . . . . . . Impact Weapon . | . . . . . . Slashing Weapon . | . . . . . . Piercing Weapon . | . . . . . . Special Melee Weapon . | . . . . . . Unidentified Prototypes . | . . . . . . Parts Lost 4 | . . . 1 . 3 Power 1 | . . . . . 1 Propulsion 1 | . . . . . 1 Utility 1 | . . . 1 . . Weapon 1 | . . . . . 1 Highest Loss Streak 3 | . . . 1 . 3 To Critical Strikes . | . . . . . . Average Slot Usage (%) 90 | . 99 100 86 77 86 Engine 13 | . 14 14 11 11 16 Leg 24 | . 28 28 22 22 16 Device 7 | . 13 14 11 . . Storage 18 | . 14 14 20 22 27 Energy Gun 12 | . 14 14 11 11 9 Ballistic Gun 1 | . . . . . 9 Launcher 12 | . 13 14 11 11 8 Naked Turns . | . . . . . . Heaviest Build 60 | 11 29 29 33 32 60 Greatest Support 20 | 20 20 20 20 20 20 Greatest Overweight (x) 5 | . 1 1 1 1 5 Average Overweight (x) . | . . 1 1 1 2 Largest Inventory Capacity 15 | 8 15 15 15 15 15 Average Capacity 12 | 6 10 15 15 15 15 Most Carried 11 | 4 8 9 9 9 11 Average Carried 7 | 1 5 8 8 8 8 Final Capacity 15 | 8 15 15 15 15 15 Final Carried 11 | 1 8 9 8 9 11 Class Distribution -------------------- 87% | Mutant 12% | Gunner Dominant Class ---------------- Mutant | -10/Materials Mutant | -10/Mines Mutant | -9/Materials Mutant | -9/Mines Gunner | -8/Materials Resources | -11 -10 -10 -9 -9 -8 ----------- Run | Scr Mat Min Mat Min Mat Matter Collected 570 | 234 49 104 50 1 132 Remotely . | . . . . . . Salvage Created 514 | . 153 . 177 44 140 Parts 58 | . 17 . 15 11 15 Haulers Intercepted . | . . . . . . Recyclers Shooed 1 | . . . 1 . . Parts Field Recycled . | . . . . . . Retrieved Matter . | . . . . . . Parts Self-Destructed . | . . . . . . Prevented . | . . . . . . Kills | -11 -10 -10 -9 -9 -8 ------- Run | Scr Mat Min Mat Min Mat Combat Hostiles Destroyed 18 | . 5 . . 7 6 Guns 4 | . 1 . . 1 2 AOE 14 | . 4 . . 6 4 Classes Destroyed 7 | . 5 . 1 . 1 Worker 2 | . 2 . . . . Builder 4 | . 1 . 1 . 2 Recycler 2 | . . . 2 . . Watcher 5 | . 2 . 3 . . Swarmer 13 | . 3 . . 7 3 Grunt 4 | . 2 . . . 2 Hunter 1 | . . . . . 1 Best Kill Streak 8 | . 8 . 4 4 3 Combat Bots Only 4 | . 3 . . 4 3 Max Kills in Single Turn 4 | . 3 . 4 3 2 Gunslinging . | . . . . . . Exploded 3 | . 1 . . 3 1 Melee . | . . . . . . Uniques/NPCs Destroyed . | . . . . . . Combat | -11 -10 -10 -9 -9 -8 -------- Run | Scr Mat Min Mat Min Mat Damage Taken 709 | . 33 . 78 146 452 Core 167 | . 18 . . 57 92 Absorbed by Shields . | . . . . . . Core Remaining (%) 92 | 100 . 92 . 85 . Volleys Fired 34 | . 8 . 6 6 14 Largest 3 | . 2 . 2 2 3 Hottest 103 | . 80 . 80 80 103 Shots Fired 69 | . 14 . 10 11 34 Gun 48 | . 8 . 6 6 28 Cannon . | . . . . . . Launcher 21 | . 6 . 4 5 6 Special . | . . . . . . Kinetic 14 | . . . . . 14 Thermal 34 | . 8 . 6 6 14 Explosive 21 | . 6 . 4 5 6 Electromagnetic . | . . . . . . Robot Hit Streak 22 | . 5 . 3 9 22 Robot Miss Streak 1 | . 1 . 1 1 1 Penetration Max . | . . . . . . Secondary Targets . | . . . . . . Shots Hit Robots 51 | . 8 . 5 9 29 Core Hits 42 | . 15 . 8 6 13 Critical Kills . | . . . . . . Critical Parts Destroyed . | . . . . . . Critical Strikes 6 | . 2 . 1 . 3 Burn 6 | . 2 . 1 . 3 Melee Attacks . | . . . . . . Impact . | . . . . . . Slashing . | . . . . . . Piercing . | . . . . . . Sneak Attacks . | . . . . . . Combat Hostiles . | . . . . . . Follow-up Attacks . | . . . . . . Damage Inflicted 1700 | . 458 . 217 412 613 Guns 492 | . 64 . 51 63 314 Cannons . | . . . . . . Explosions 1208 | . 394 . 166 349 299 Melee . | . . . . . . Ramming . | . . . . . . Kinetic 177 | . . . . . 177 Thermal 315 | . 64 . 51 63 137 Explosive 1208 | . 394 . 166 349 299 Electromagnetic . | . . . . . . Impact . | . . . . . . Slashing . | . . . . . . Piercing . | . . . . . . Highest Corruption 1 | . 1 1 . . . Average Corruption 1 | . 1 1 . . . Corruption Purged . | . . . . . . Corruption Blocked . | . . . . . . Effects 3 | . 2 1 . . . Message Errors 1 | . . 1 . . . Energy Discharges 2 | . 2 . . . . Overload Shots . | . . . . . . Overflow Damage 50 | . 11 . . 24 15 Projectiles . | . . . . . . Explosions 50 | . 11 . . 24 15 Melee . | . . . . . . Knockbacks . | . . . . . . Impact . | . . . . . . Kinetic . | . . . . . . Secondary . | . . . . . . Self-Inflicted Damage 232 | . 25 . 32 93 82 Shots 10 | . 2 . 1 3 4 Rammed . | . . . . . . Targets Rammed . | . . . . . . Kicked . | . . . . . . Crushed . | . . . . . . Highest Temperature 128 | . 54 . 22 27 128 Average Temperature 34 | . 19 . 8 10 60 Received Heat Transfer 189 | . . . 18 . 171 Siege Activations . | . . . . . . Robots Corrupted . | . . . . . . Combat Hostiles . | . . . . . . Parts Fried . | . . . . . . Impact Corruptions . | . . . . . . Robots Melted . | . . . . . . Combat Hostiles . | . . . . . . Parts Melted 1 | . . . . . 1 Heat Transferred 1369 | . 333 . 222 185 629 Parts Sabotaged . | . . . . . . Parts Stolen . | . . . . . . Parts Stripped . | . . . . . . Power Chain Reactions . | . . . . . . Missiles Intercepted . | . . . . . . Alert | -11 -10 -10 -9 -9 -8 ------- Run | Scr Mat Min Mat Min Mat Peak Influence 284 | . 284 37 144 222 208 Initial 44 | . . 27 12 44 21 Average 92 | . 109 28 76 122 57 Maximum Alert Level 1 | . 1 . . 1 1 Low Security (%) 93 | 100 84 100 100 98 99 Level 1 6 | . 15 . . 1 . Level 2 . | . . . . . . Level 3 . | . . . . . . Level 4 . | . . . . . . Level 5 . | . . . . . . High Security . | . . . . . . Max Security . | . . . . . . Squads Dispatched 3 | . . . . . 3 Investigation . | . . . . . . Extermination . | . . . . . . Reinforcement 2 | . . . . . 2 Assault . | . . . . . . Garrison 1 | . . . . . 1 Intercept . | . . . . . . Searches Triggered . | . . . . . . Construction Impeded 1 | . . . . . 1 Haulers Reinforced . | . . . . . . Active Scanning Responses . | . . . . . . Cargo Convoy Interrupts . | . . . . . . Stealth | -11 -10 -10 -9 -9 -8 --------- Run | Scr Mat Min Mat Min Mat Distress Signals 2 | . 2 . . . . Communications Jammed . | . . . . . . Distress Signals . | . . . . . . Times Spotted 31 | . 10 . 5 7 9 Peak Tracking Total 4 | . 3 . 3 4 3 Tactical Retreats . | . . . . . . Traps | -11 -10 -10 -9 -9 -8 ------- Run | Scr Mat Min Mat Min Mat Traps Triggered 1 | . 1 . . . . Indirectly . | . . . . . . Trap Hack Attempts . | . . . . . . Triggered . | . . . . . . Disarmed . | . . . . . . Reprogrammed . | . . . . . . Reused . | . . . . . . Traps Extracted . | . . . . . . Installed . | . . . . . . Triggered 1 | . . 1 . . . Machines | -11 -10 -10 -9 -9 -8 ---------- Run | Scr Mat Min Mat Min Mat Machines Disabled 2 | . 1 . 1 . . Max in Single Turn 1 | . 1 . 1 . . Machines Sabotaged . | . . . . . . Garrisons Compromised . | . . . . . . Overloaded Fab Kills . | . . . . . . Hacking | -11 -10 -10 -9 -9 -8 --------- Run | Scr Mat Min Mat Min Mat Machines Accessed 6 | . 4 . 1 . 1 Terminals 4 | . 3 . . . 1 Fabricators . | . . . . . . Repair Stations . | . . . . . . Recycling Units 2 | . 1 . 1 . . Scanalyzers . | . . . . . . Garrison Access . | . . . . . . Total Hacks 13 | . 11 . 1 . 1 Successful 9 | . 7 . 1 . 1 Failed 4 | . 4 . . . . Catastrophic . | . . . . . . Database Lockouts . | . . . . . . Manual . | . . . . . . Terminals 10 | . 9 . . . 1 Fabricators . | . . . . . . Repair Stations . | . . . . . . Recycling Units 3 | . 2 . 1 . . Scanalyzers . | . . . . . . Garrison Access . | . . . . . . Terminal Hacks 6 | . 5 . . . 1 Record 1 | . 1 . . . . Prototype ID Bank 1 | . 1 . . . . Locate Traps 1 | . . . . . 1 Recall Investigation 1 | . 1 . . . . Hauler Manifests 1 | . 1 . . . . Zone Layout 1 | . 1 . . . . Fabricator Hacks . | . . . . . . Repair Station Hacks . | . . . . . . Recycling Unit Hacks 3 | . 2 . 1 . . Process 1 | . 1 . . . . Report Inventory 2 | . 1 . 1 . . Scanalyzer . | . . . . . . Garrison Access Hacks . | . . . . . . Unauthorized Hacks . | . . . . . . Terminals . | . . . . . . Fabricators . | . . . . . . Repair Stations . | . . . . . . Recycling Units . | . . . . . . Scanalyzers . | . . . . . . Garrison Access . | . . . . . . Data Cores Recovered . | . . . . . . Used . | . . . . . . Hacking Detections 3 | . 3 . . . . Full Trace Events . | . . . . . . Feedback Events . | . . . . . . Feedback Blocked . | . . . . . . Robot Schematics Acquired . | . . . . . . Robots Built . | . . . . . . Authchips . | . . . . . . Time . | . . . . . . Total Robot Build Rating . | . . . . . . Part Schematics Acquired . | . . . . . . Parts Built . | . . . . . . Authchips . | . . . . . . Time . | . . . . . . Total Part Build Rating . | . . . . . . Parts Repaired . | . . . . . . Time . | . . . . . . Parts Recycled . | . . . . . . Recycled Matter 2 | . 2 . . . . Retrieved Matter . | . . . . . . Retrieved Components . | . . . . . . Parts Scanalyzed . | . . . . . . Part Schematics Acquired . | . . . . . . Parts Damaged . | . . . . . . Bothacking | -11 -10 -10 -9 -9 -8 ------------ Run | Scr Mat Min Mat Min Mat Used RIF Installer . | . . . . . . Robots Hacked . | . . . . . . Non-combat . | . . . . . . Combat . | . . . . . . Robot Hacks Applied . | . . . . . . Relay Couplers Released . | . . . . . . Fabnet Peak Effective % . | . . . . . . Robots Rewired . | . . . . . . Allies Hacked . | . . . . . . Hacks Repelled . | . . . . . . Allies | -11 -10 -10 -9 -9 -8 -------- Run | Scr Mat Min Mat Min Mat Total Allies . | . . . . . . Largest Group . | . . . . . . Highest-Rated Group . | . . . . . . Highest-Rated Ally . | . . . . . . Total Orders . | . . . . . . Ally Attacks . | . . . . . . Total Damage . | . . . . . . Kills . | . . . . . . Allies Corrupted . | . . . . . . Allies Melted . | . . . . . . Intel | -11 -10 -10 -9 -9 -8 ------- Run | Scr Mat Min Mat Min Mat Robot Analysis Total . | . . . . . . Derelict Logs Recovered 1 | . . . . 1 . Drone Launches . | . . . . . . Drone Recoveries . | . . . . . . Exploration | -11 -10 -10 -9 -9 -8 ------------- Run | Scr Mat Min Mat Min Mat Turns Passed 1837 | 59 739 121 236 426 256 Spaces Moved 946 | 44 442 61 116 213 70 Core 15 | 15 . . . . . Treads . | . . . . . . Legs 931 | 29 442 61 116 213 70 Wheels . | . . . . . . Hover . | . . . . . . Flight . | . . . . . . Fastest Speed 50 | 50 120 190 190 190 260 Average Speed 167 | 96 140 190 190 190 263 Slowest Speed 470 | 120 190 190 190 190 470 Overloaded Moves . | . . . . . . Propulsion Burnouts . | . . . . . . Robots Hopped . | . . . . . . Cave-ins Triggered . | . . . . . . Exploration Rate (%) 19 | 3 49 12 10 34 9 Regions Visited 5 Branch Regions 2 Pre-discovered Areas . | . . . . . . Known Exits Taken . | . . . . . . Unknown Exits Taken 5 | 1 1 1 1 1 . Scrap Searched 2 | . . 1 . 1 . Spaces Dug . | . . . . . . Terrain Destroyed 120 | . 25 . 21 27 47 Melee . | . . . . . . Projectile . | . . . . . . AOE 120 | . 25 . 21 27 47 Terrain Rammed . | . . . . . . Walls Destroyed . | . . . . . . Machines Disabled . | . . . . . . Actions | -11 -10 -10 -9 -9 -8 --------- Run | Scr Mat Min Mat Min Mat Total 1132 | 60 548 67 122 224 111 Wait 117 | 4 84 6 . 5 18 Move 941 | 43 441 60 115 212 70 Hop . | . . . . . . Pick Up 22 | 7 8 1 . 1 5 Fast Attach . | . . . . . . Attach 13 | 6 3 . 1 . 3 Detach 2 | . 2 . . . . Swap 2 | . 1 . . . 1 Drop 1 | . 1 . . . . Fire 34 | . 8 . 6 6 14 Melee . | . . . . . . Ram . | . . . . . . Kick . | . . . . . . Crush . | . . . . . . Escape Stasis . | . . . . . . Rewire . | . . . . . . Trap . | . . . . . . Miscellaneous . | . . . . . . Route ------- -11/Scrapyard -10/Materials -10/Mines -9/Materials -9/Mines -8/Materials History --------- Turn | Location | Event 13 | -11/Scrapyard | Discovered new exit (range 15) 60 | -11/Scrapyard | Entered Materials 313 | -10/Materials | Build established: Mutant 708 | -10/Materials | Discovered new exit (range 6) 799 | -10/Materials | Entered Mines 801 | -10/Mines | Met a Derelict bent on vengeance 834 | -10/Mines | Discovered new exit (range 15) 920 | -10/Mines | Entered Materials 920 | -9/Materials | Evolved 2 slots: Propulsion x1, Utility x1 1124 | -9/Materials | Discovered new exit (range 15) 1156 | -9/Materials | Entered Mines 1203 | -9/Mines | Learned Materials security intel 1553 | -9/Mines | Discovered new exit (range 14) 1582 | -9/Mines | Entered Materials 1582 | -8/Materials | Evolved 2 slots: Power x1, Weapon x1 1749 | -8/Materials | Garrison activated, responded to threat 1838 | -8/Materials | Self-destructed Last Messages --------------- U-05 Engineer builds a Wall. The unstable cave ceiling collapses. K-01 Serf collects debris. U-05 Engineer lays Concrete. Imp. Heat Sink melted. G-47 Trooper destroyed. K-01 Serf collects debris. U-05 Engineer lays Concrete. U-05 Engineer builds a Wall. K-01 Serf collects debris. G-47 Trooper destroyed. K-01 Serf cleans the Garrison Access. K-01 Serf collects debris. ALERT: Construction progress impeded, dispatching reinforcements to local area. Grenade Launcher destroyed. K-01 Serf collects debris. Slug penetrates Garrison Access. Acquired 10 matter. K-01 Serf collects debris. Penetrated by Slug. Map ----- +----------------------------------------------------+ | ????????????????#####?? ????????????????????????? | | ????????????????# #? ?????????????????????????? | | ????????????????# # ??????????????????????????? | | ????????????????# # ???????????????????????????? | | ????????????????+ +????????????????????????????? | | ????????????????# #????????????????????????????? | | ????????????????# #????????????????????????????? | | ???????????????## ##???????????????????????????? | | ????????????#### ###########?????????????????? | | ???????????##!! ???????????????? | | ???????????#! ???????????????? | | ???????????#! ???????????????? | | ???????????# ###+########????????????????? | | ???????????#! ## ##?#|% #??????????????????? | | ???????????##!!## ####*** #??????????????????? | | ????????????##### # ##%* " #???????^?^????????? | | ????????????????# [!*= T #??????????????????? | | ????????????????# # [ = " #??????????????????? | | ????????????????# #??????????????????? | | ????????????????# # #######???????????????? | | ????????????????# # ??????^????????? | | ????????????????# # # g ## " #????????????? | | ????????????????# ### ## "G" #????????????? | | ????????????????# # " " #????????????? | | ????????????????# =%* = k h #????????????? | | ????????????????# = @ """ #????????????? | | ????????????????# [ """ ???^??????????? | | ????????????????# ## """ ??????????????? | | ??????????????# ## # #????????????? | | ??????????????# ???# T #####+####????????????? | | ??????????????#?????# #?????#???????????????? | | ????????????????????# #?????????????????????? | | ????????????????????# #?????????????????????? | | ????????????????????# #?????????????????????? | | ????????????????????########?????????????????????? | | ?????????????????????????????????????????????????? | | ?????????????????????????????????????????????????? | | ?????????????????????????????????????????????????? | | ?????????????????????????????????????????????????? | | ?????????????????????????????????????????????????? | | ?????????????????????????????????????????????????? | | ?????????????????????????????????????????????????? | | ?????????????????????????????????????????????????? | | ?????????????????????????????????????????????????? | | ?????????????????????????????????????????????????? | | ?????????????????????????????????????????????????? | | ?????????????????????????????????????????????????? | | ?????????????????????????????????????????????????? | | ?????????????????????????????????????????????????? | | ?????????????????????????????????????????????????? | +----------------------------------------------------+ Best States ------------- Heat Dissipation 31 Energy Generation 15 Energy Capacity 275 Matter Stores 500 Matter Capacity 500 Sight Range 16 Terrain Scan Density 10 Resistance: KI 20 Resistance: TH 20 Resistance: EX 20 Resistance: EM 20 Resistance: I 20 Resistance: S 20 Resistance: P 20 Evasion (%) 55 Offensive Hacking 10 Item Schematics ----------------- None Robot Schematics ------------------ None Fabricated ------------ Nothing Alien Tech Used ----------------- None Achievements -------------- Troublemaker Challenges ------------ None Game ------ Seed ReinforcedHardenedModule Manual? 0 Play Time 00:14:01 Cumulative 5.0 hours Start 2022.04.26 @ 16:01:09 End 2022.05.15 @ 09:14:43 Sessions 3 Manual Loads 0 Difficulty Adventurer Special Mode None Game No. 11 Rogue 0 Adventurer 11 Explorer 0 Win Type - Total 0 Types 0/0/0/0/0/0/0/0/0 Lore% 11 Gallery% 11 Achievement% 14 Wizard Run 0 Options --------- ASCII 0 Keyboard 0 Movement Arrows Keybinds 0 Fullscreen 1 Font 18/SmallcapsGlow Map View 112x50 Tactical HUD 0 Map Filters NONE Filters NONE Steam 1 RUN: 92a6f051-6011-49cb-98b1-712a92b9406c